bitfinex/quotes_SOLUSD_20250908
["timestamp","ask_amount","ask_price","bid_price","bid_amount"]
[1757301052823,0.66,208.52,208.49,26.0]
[1757301053016,9.51927636,208.53,208.5,13.59559401]
[1757301053215,0.06,208.58,208.5,13.59559401]
[1757301053216,9.51927636,208.54,208.5,13.59559401]
[1757301053400,10.17927636,208.53,208.5,13.59559401]
[1757301053921,0.66,208.52,208.5,13.59559401]
[1757301055234,0.66,208.51,208.44,13.62559401]
[1757301055402,9.51927636,208.49,208.47,26.0]
[1757301055601,10.17927636,208.49,208.47,26.0]
[1757301056102,0.66,208.48,208.47,26.0]
[1757301056302,10.17927636,208.48,208.44,0.03]
[1757301056614,10.17927636,208.47,208.44,0.03]
[1757301057009,0.66,208.46,208.44,0.03]
[1757301057508,10.17927636,208.46,208.44,0.03]
[1757301057904,9.51927636,208.46,208.44,0.03]
[1757301058127,10.17927636,208.45,208.44,26.03]
[1757301058425,10.17927636,208.45,208.44,0.03]
[1757301059346,53.19658986,208.45,208.44,0.03]
[1757301059640,35.51927636,208.42,208.41,1e-08]
[1757301059804,35.51927636,208.42,208.39,0.03]
[1757301060010,9.51927636,208.4,208.39,0.03]
[1757301060334,26.0,208.37,208.23,0.1]
[1757301060643,9.51927636,208.27,208.24,2.69992015]
[1757301060806,9.51927636,208.27,208.24,28.69992015]
[1757301061001,26.0,208.32,208.23,0.1]
[1757301061210,9.51927636,208.27,208.24,28.70403892]
[1757301061538,9.51927636,208.27,208.25,2.70403892]
[1757301061706,9.51927636,208.27,208.23,0.1]
[1757301061707,9.51927636,208.28,208.23,0.1]
[1757301061902,9.51927636,208.28,208.24,2.70236405]
[1757301062218,9.51927636,208.28,208.25,2.70236405]
[1757301062541,0.66,208.28,208.23,18.49787113]
[1757301062710,10.17927636,208.28,208.24,2.70607874]
[1757301063028,10.17927636,208.28,208.25,2.70607874]
[1757301063231,0.66,208.32,208.25,13.59559401]
[1757301063407,9.51927636,208.31,208.25,9.51927636]
[1757301063606,9.51927636,208.3,208.26,2.70750782]
[1757301063808,10.17927636,208.3,208.24,23.11487037]
[1757301064007,9.51927636,208.29,208.25,2.7074895]
[1757301064207,10.17927636,208.3,208.24,23.11487037]
[1757301064425,10.17927636,208.3,208.25,2.70511802]
[1757301064611,38.92,208.33,208.26,23.75487037]
[1757301064811,9.51927636,208.32,208.26,23.75487037]
[1757301065011,9.51927636,208.32,208.27,4.80145964]
[1757301065211,9.51927636,208.31,208.27,4.80145964]
[1757301066421,0.68,208.32,208.27,4.80145964]
[1757301066610,9.51927636,208.31,208.27,4.80145964]
[1757301066941,9.51927636,208.31,208.26,94.33559401]
[1757301067227,9.51927636,208.28,208.23,13.69559401]
[1757301067436,10.19927636,208.28,208.23,39.69559401]
[1757301067817,10.19927636,208.28,208.23,44.49792192]
[1757301068138,9.51927636,208.29,208.24,0.64]
[1757301068435,0.68,208.3,208.23,44.49792192]
[1757301068436,9.51927636,208.28,208.23,44.49792192]
[1757301068633,9.51927636,208.28,208.24,0.03]
[1757301068816,0.68,208.27,208.24,0.03]
[1757301069023,10.19927636,208.28,208.24,0.03]
[1757301069418,9.51927636,208.27,208.24,0.03]
[1757301069615,10.19927636,208.28,208.24,0.03]
[1757301069814,0.68,208.3,208.24,0.03]
[1757301070019,9.51927636,208.28,208.24,0.03]
[1757301070643,10.19927636,208.28,208.24,0.03]
[1757301070839,9.51927636,208.29,208.24,0.03]
[1757301071034,9.51927636,208.3,208.24,0.03]
[1757301071232,9.51927636,208.29,208.24,0.03]
[1757301071739,0.68,208.28,208.24,0.03]
[1757301071945,9.51927636,208.27,208.24,0.03]
[1757301072124,9.51927636,208.26,208.24,0.03]
[1757301072321,10.19927636,208.26,208.24,0.03]
[1757301072720,10.19927636,208.25,208.24,0.03]
[1757301074339,15.00119712,208.25,208.24,0.03]
[1757301074717,15.00119712,208.25,208.23,0.1]
[1757301074919,9.51927636,208.24,208.23,0.1]
[1757301075322,10.19927636,208.24,208.23,0.1]
[1757301076246,15.00142772,208.24,208.23,0.1]
[1757301076943,0.68,208.24,208.23,0.1]
[1757301077137,146.87857112,208.39,208.23,0.1]
[1757301077138,38.88,208.28,208.23,0.1]
[1757301077444,9.51927636,208.27,208.23,0.1]
[1757301077741,9.51927636,208.27,208.23,4.90238051]
[1757301078039,48.39927636,208.28,208.23,4.90238051]
[1757301078230,48.39927636,208.28,208.23,5.56238051]
[1757301078737,10.19927636,208.28,208.23,5.56238051]
[1757301079330,9.51927636,208.27,208.23,4.90238051]
[1757301079837,9.51927636,208.28,208.23,5.56238051]
[1757301080947,9.51927636,208.29,208.24,0.66]
[1757301081241,0.68,208.33,208.26,13.59559401]
[1757301081539,9.51927636,208.31,208.27,4.80145964]
[1757301081745,10.19927636,208.31,208.27,4.80145964]
[1757301081923,0.68,208.31,208.27,4.80145964]
[1757301082121,48.43927636,208.33,208.27,14.320736]
[1757301082321,10.19927636,208.33,208.28,0.66]
[1757301082537,26.76401923,208.35,208.29,23.11487037]
[1757301082741,17.24474287,208.35,208.31,9.51927636]
[1757301083043,17.24474287,208.35,208.31,23.77487037]
[1757301083420,17.24474287,208.35,208.32,4.80030721]
[1757301083823,17.24474287,208.35,208.33,23.77487037]
[1757301084223,17.24474287,208.35,208.34,23.77487037]
[1757301084928,17.24474287,208.35,208.34,14.25559401]
[1757301085133,0.06,208.39,208.35,13.59559401]
[1757301085334,0.06,208.39,208.36,4.79938567]
[1757301086833,0.06,208.39,208.36,14.97866203]
[1757301087036,0.06,208.39,208.36,4.79938567]
[1757301087237,0.74,208.39,208.36,4.79938567]
[1757301087540,0.06,208.39,208.36,4.79938567]
[1757301089340,10.19927636,208.38,208.33,30.7998689]
[1757301089539,10.19927636,208.38,208.33,40.31914526]
[1757301089731,9.57927636,208.39,208.33,40.31914526]
[1757301089924,0.68,208.38,208.33,40.31914526]
[1757301091835,0.68,208.38,208.34,35.51927636]
[1757301092246,0.68,208.37,208.34,26.0]
[1757301093051,6.53291273,208.39,208.34,26.0]
[1757301093225,7.15291273,208.36,208.32,4.80028236]
[1757301093548,7.15291273,208.35,208.32,4.80028236]
[1757301093842,0.68,208.35,208.32,4.80028236]
[1757301096249,6.47291273,208.33,208.26,13.59559401]
[1757301096428,6.47291273,208.3,208.29,26.0]
[1757301096849,0.68,208.32,208.3,4.80076812]
[1757301097223,6.47291273,208.33,208.3,4.80076812]
[1757301097426,7.15291273,208.34,208.3,4.80076812]
[1757301097738,6.47291273,208.34,208.3,5.46076812]
[1757301097927,6.47291273,208.34,208.3,4.80076812]
[1757301098127,7.15291273,208.34,208.3,4.80076812]
[1757301098736,6.47291273,208.35,208.3,4.80076812]
[1757301098938,7.15291273,208.35,208.3,4.80076812]
[1757301099334,6.47291273,208.34,208.3,4.80076812]
[1757301099535,0.68,208.34,208.3,4.80076812]
[1757301099741,6.47291273,208.34,208.3,4.80076812]
[1757301100157,6.47291273,208.34,208.31,26.0]
[1757301100451,7.15291273,208.36,208.31,26.0]
[1757301100830,7.15291273,208.36,208.32,4.80030721]
[1757301101029,0.68,208.36,208.32,4.80030721]
[1757301101254,7.15291273,208.36,208.32,4.80030721]
[1757301101554,0.68,208.35,208.32,4.80030721]
[1757301102359,6.47291273,208.36,208.32,4.80030721]
[1757301102656,0.68,208.35,208.32,4.80030721]
[1757301103838,6.47291273,208.36,208.32,4.80030721]
[1757301104039,6.47291273,208.36,208.32,5.46030721]
[1757301104233,0.68,208.37,208.32,5.46030721]
[1757301104234,0.68,208.37,208.33,13.59559401]
[1757301104434,6.47291273,208.38,208.33,13.59559401]
[1757301104754,7.15291273,208.38,208.33,14.25559401]
[1757301104951,7.15291273,208.37,208.33,13.59559401]
[1757301105353,7.15291273,208.36,208.32,4.80030721]
[1757301105553,7.15291273,208.36,208.33,2.71451447]
[1757301105750,7.15291273,208.36,208.34,4.7998464]
[1757301106955,0.68,208.36,208.34,4.7998464]
[1757301108059,0.68,208.36,208.31,112.57291273]
[1757301108060,0.68,208.36,208.32,18.39590122]
[1757301109057,2.39044205,208.37,208.32,18.39590122]
[1757301109255,0.68,208.35,208.32,18.39590122]
[1757301110962,2.39044205,208.36,208.32,18.39590122]
[1757301111150,0.68,208.37,208.32,20.78634327]
[1757301111953,0.68,208.37,208.32,21.44634327]
[1757301112257,3.07044205,208.37,208.32,21.44634327]
[1757301113047,0.68,208.36,208.32,20.78634327]
[1757301113856,0.68,208.36,208.32,100.88634327]
[1757301115361,0.68,208.36,208.32,101.54634327]
[1757301115559,2.39044205,208.37,208.32,101.54634327]
[1757301115767,3.07044205,208.37,208.32,101.54634327]
[1757301116264,0.68,208.36,208.32,101.54634327]
[1757301117159,0.68,208.36,208.32,99.15590122]
[1757301117377,0.68,208.36,208.32,101.54634327]
[1757301117964,2.39044205,208.37,208.32,101.54634327]
[1757301118164,2.39044205,208.37,208.32,100.88634327]
[1757301118346,0.68,208.37,208.33,0.66]
[1757301118546,3.07044205,208.37,208.32,100.88634327]
[1757301118754,3.07044205,208.37,208.32,99.15590122]
[1757301119057,3.07044205,208.37,208.32,101.54634327]
[1757301119459,0.06,208.38,208.34,13.59559401]
[1757301119659,0.06,208.38,208.34,15.98603606]
[1757301119874,0.06,208.38,208.35,0.66]
[1757301120158,0.06,208.38,208.36,4.79938567]
[1757301120550,0.06,208.38,208.37,26.66]
[1757301120744,0.06,208.38,208.37,29.05044205]
[1757301120962,0.06,208.38,208.37,26.0]
[1757301123169,0.06,208.38,208.37,33.51831764]
[1757301123349,0.06,208.38,208.37,30.79915534]
[1757301124271,0.06,208.38,208.37,33.52011177]
[1757301128863,0.06,208.38,208.37,36.58055382]
[1757301129062,0.06,208.38,208.37,35.91055382]
[1757301129471,0.06,208.38,208.37,127.88570578]
[1757301129766,0.06,208.39,208.37,127.88570578]
[1757301129767,0.06,208.39,208.37,130.27614783]
[1757301129978,0.06,208.41,208.4,39.59559401]
[1757301130160,0.06,208.41,208.4,124.80699249]
[1757301130356,0.06,208.41,208.4,125.47699249]
[1757301131480,0.06,208.41,208.4,130.27545698]
[1757301132879,0.06,208.42,208.41,42.39559401]
[1757301133071,3.09044205,208.52,208.43,28.39044205]
[1757301133262,3.09044205,208.52,208.43,31.11139848]
[1757301133461,0.7,208.52,208.43,31.78139848]
[1757301133667,0.7,208.52,208.49,2.39044205]
[1757301134062,0.7,208.51,208.49,2.39044205]
[1757301134276,0.7,208.51,208.48,2.39044205]
[1757301134784,0.7,208.51,208.48,7.18685859]
[1757301135081,0.7,208.51,208.45,14.26559401]
[1757301135082,0.7,208.5,208.44,82.49044205]
[1757301135272,3.09044205,208.49,208.45,26.0]
[1757301135456,0.7,208.48,208.45,26.0]
[1757301135658,0.7,208.47,208.45,26.0]
[1757301135862,0.7,208.47,208.45,30.7973135]
[1757301136290,0.7,208.47,208.42,13.59559401]
[1757301136291,0.7,208.46,208.42,13.59559401]
[1757301136468,2.39044205,208.47,208.42,13.59559401]
[1757301136469,0.7,208.45,208.42,39.59559401]
[1757301137370,0.7,208.45,208.43,4.79774772]
[1757301137759,0.7,208.45,208.42,44.39359419]
[1757301138009,0.7,208.44,208.42,26.0]
[1757301138288,0.7,208.44,208.4,4.79846449]
[1757301138289,0.7,208.43,208.4,4.79846449]
[1757301140987,2.39044205,208.41,208.36,13.59559401]
[1757301141194,0.7,208.42,208.36,13.59559401]
[1757301141195,2.39044205,208.39,208.36,13.59559401]
[1757301141401,3.09044205,208.39,208.34,4.7998464]
[1757301141572,0.7,208.38,208.35,2.71487525]
[1757301141770,2.39044205,208.36,208.3,15.98603606]
[1757301141986,2.39044205,208.36,208.32,13.59559401]
[1757301141987,3.09044205,208.36,208.32,13.59559401]
[1757301142666,0.7,208.36,208.32,18.39588792]
[1757301142965,0.7,208.35,208.32,13.59559401]
[1757301143398,2.39044205,208.36,208.32,13.59559401]
[1757301143597,0.7,208.35,208.32,13.59559401]
[1757301143970,0.7,208.34,208.32,26.0]
[1757301144389,2.39044205,208.35,208.29,7.1912203]
[1757301144586,2.39044205,208.3,208.25,13.59559401]
[1757301144915,3.09044205,208.29,208.24,4.83213567]
[1757301145205,3.09044205,208.28,208.24,0.03]
[1757301145407,2.39044205,208.27,208.24,0.03]
[1757301145873,0.7,208.27,208.24,0.03]
[1757301146074,0.7,208.26,208.24,0.03]
[1757301146373,3.09044205,208.26,208.24,26.03]
[1757301146574,0.7,208.25,208.24,0.03]
[1757301147692,3.09044205,208.25,208.24,0.03]
[1757301148305,7.89236281,208.25,208.24,0.03]
[1757301149674,45.67236281,208.25,208.24,0.03]
[1757301150278,3.09044205,208.25,208.24,0.03]
[1757301150796,40.85044205,208.25,208.24,0.03]
[1757301150978,3.09044205,208.25,208.24,0.03]
[1757301151178,45.65236281,208.25,208.24,0.03]
[1757301151483,7.89236281,208.25,208.24,0.03]
[1757301152883,45.63236281,208.25,208.24,0.03]
[1757301153295,7.89236281,208.25,208.24,0.03]
[1757301154034,2.39044205,208.29,208.24,0.03]
[1757301154177,38.46,208.3,208.25,2.39044205]
[1757301154374,1.92247615,208.33,208.29,3.73647942]
[1757301154605,1.92247615,208.33,208.3,3.73647942]
[1757301154783,0.7,208.33,208.28,29.73647942]
[1757301154980,0.7,208.33,208.28,26.0]
[1757301154981,3.73647942,208.31,208.28,26.0]
[1757301155304,0.71,208.3,208.28,26.0]
[1757301155594,41.53647942,208.32,208.28,26.0]
[1757301155978,0.71,208.31,208.28,26.0]
[1757301156392,4.44647942,208.3,208.24,80.13]
[1757301156694,0.71,208.29,208.24,109.86647942]
[1757301157178,0.71,208.28,208.24,106.13]
[1757301157597,8.5378651,208.28,208.24,26.03]
[1757301157894,4.44647942,208.27,208.24,0.03]
[1757301158481,0.71,208.27,208.24,0.03]
[1757301160871,37.8,208.28,208.25,4.40647942]
[1757301160872,37.76,208.28,208.25,4.40647942]
[1757301161086,37.76,208.28,208.25,0.67]
[1757301161281,37.76,208.28,208.24,0.03]
[1757301161491,4.44647942,208.27,208.24,0.03]
[1757301161879,0.71,208.26,208.24,0.03]
[1757301163811,37.76,208.28,208.24,0.03]
[1757301163812,42.20647942,208.28,208.24,0.03]
[1757301164105,38.47,208.28,208.24,0.03]
[1757301164475,37.74,208.27,208.24,0.03]
[1757301164801,37.74,208.27,208.24,3.76647942]
[1757301165399,38.45,208.27,208.24,0.03]
[1757301165606,0.71,208.26,208.24,0.03]
[1757301166485,37.74,208.26,208.24,0.03]
[1757301167299,0.71,208.28,208.24,0.03]
[1757301167501,38.43,208.27,208.24,0.03]
[1757301168302,0.71,208.26,208.24,0.03]
[1757301168498,37.7,208.27,208.24,0.03]
[1757301168697,38.41,208.27,208.24,0.03]
[1757301169908,0.71,208.26,208.24,0.03]
[1757301171208,37.7,208.27,208.24,0.03]
[1757301171388,0.71,208.26,208.24,0.03]
[1757301176507,0.71,208.25,208.24,0.03]
[1757301177910,4.44647942,208.25,208.24,0.03]
[1757301178495,0.71,208.25,208.24,0.03]
[1757301178698,4.44647942,208.25,208.24,0.03]
[1757301178898,9.24840018,208.25,208.24,0.03]
[1757301183318,4.44647942,208.25,208.24,0.03]
[1757301184101,9.24840018,208.25,208.24,0.03]
[1757301184820,46.82840018,208.25,208.24,0.03]
[1757301185726,9.24840018,208.25,208.24,0.03]
[1757301185902,46.80840018,208.25,208.24,0.03]
[1757301187117,9.24840018,208.25,208.24,0.03]
[1757301187313,46.80840018,208.25,208.24,0.03]
[1757301188326,46.78840018,208.25,208.24,0.03]
[1757301188822,3.73647942,208.25,208.24,0.03]
[1757301189130,37.54,208.25,208.24,0.03]
[1757301189515,38.24,208.25,208.24,0.03]
[1757301190513,41.97647942,208.25,208.24,0.03]
[1757301191726,46.77840018,208.25,208.24,0.03]
[1757301192521,43.04192076,208.25,208.24,0.03]
[1757301192726,41.97647942,208.25,208.24,0.03]
[1757301194215,41.27647942,208.25,208.24,0.03]
[1757301195523,3.73647942,208.25,208.24,0.03]
[1757301195916,41.23647942,208.25,208.24,0.03]
[1757301196517,41.93647942,208.25,208.24,0.03]
[1757301196927,41.23647942,208.25,208.24,0.03]
[1757301197116,41.93647942,208.25,208.24,0.03]
[1757301197319,41.23647942,208.25,208.24,0.03]
[1757301197520,41.93647942,208.25,208.24,0.03]
[1757301197722,3.73647942,208.25,208.24,0.03]
[1757301198026,41.93647942,208.25,208.24,0.03]
[1757301208556,37.48,208.25,208.24,0.03]
[1757301208928,41.21647942,208.25,208.24,0.03]
[1757301209448,41.91647942,208.25,208.24,0.03]
[1757301212365,46.71840018,208.25,208.24,0.03]
[1757301213029,41.91647942,208.25,208.24,0.03]
[1757301213462,4.43647942,208.25,208.24,0.03]
[1757301213648,41.91647942,208.25,208.24,0.03]
[1757301214556,40.57347027,208.25,208.24,0.03]
[1757301217133,45.37539103,208.25,208.24,0.03]
[1757301224841,40.57347027,208.25,208.24,0.03]
[1757301225043,45.37539103,208.25,208.24,0.03]
[1757301228046,13.59559401,208.24,208.23,0.1]
[1757301228246,15.98906428,208.24,208.23,0.1]
[1757301228445,15.98906428,208.24,208.21,0.03]
[1757301228446,39.59559401,208.22,208.21,0.03]
[1757301228748,93.82555798,208.22,208.21,0.03]
[1757301228934,94.52555798,208.22,208.21,0.03]
[1757301229741,84.9516769,208.22,208.21,0.03]
[1757301230661,71.35608289,208.22,208.21,0.03]
[1757301231254,84.9516769,208.22,208.21,0.03]
[1757301231563,47.4916769,208.22,208.21,0.03]
[1757301231765,84.9516769,208.22,208.21,0.03]
[1757301233061,47.4916769,208.22,208.21,0.03]
[1757301233265,84.9516769,208.22,208.21,0.03]
[1757301237371,47.4916769,208.22,208.21,0.03]
[1757301237553,84.9716769,208.22,208.21,0.03]
[1757301237952,82.57820663,208.22,208.21,0.03]
[1757301238151,84.9716769,208.22,208.21,0.03]
[1757301240461,71.37608289,208.22,208.21,0.03]
[1757301241552,1.07199996,208.25,208.21,0.7]
[1757301241760,39.85347027,208.24,208.21,0.7]
[1757301242350,2.39347027,208.23,208.21,0.7]
[1757301242551,37.46,208.22,208.21,0.03]
[1757301243168,39.85347027,208.22,208.21,0.03]
[1757301243550,37.46,208.22,208.21,0.03]
[1757301243760,37.46,208.22,208.21,0.7]
[1757301244454,1.07199996,208.25,208.21,3.09347027]
[1757301244652,1.07199996,208.25,208.22,3.06347027]
[1757301244653,37.46,208.24,208.22,3.06347027]
[1757301244866,37.46,208.24,208.23,0.67]
[1757301250656,37.46,208.23,208.22,0.67]
[1757301252359,37.46,208.23,208.21,0.03]
[1757301252675,37.46,208.23,208.21,0.7]
[1757301253178,37.46,208.23,208.21,0.03]
[1757301253472,42.26240957,208.23,208.21,0.03]
[1757301254357,0.69,208.22,208.21,0.03]
[1757301254691,3.08347027,208.22,208.21,0.03]
[1757301255378,42.26240957,208.23,208.21,0.03]
[1757301255578,39.85347027,208.23,208.21,0.03]
[1757301255786,45.34590973,208.23,208.21,0.03]
[1757301256859,0.06,208.25,208.21,0.7]
[1757301257066,37.46,208.24,208.21,0.7]
[1757301257275,39.85347027,208.24,208.21,0.03]
[1757301257958,40.54347027,208.24,208.21,0.03]
[1757301258678,2.39347027,208.23,208.21,0.03]
[1757301258873,37.46,208.22,208.21,0.03]
[1757301260976,45.34608289,208.22,208.21,0.03]
[1757301261485,40.54347027,208.22,208.21,0.03]
[1757301261781,39.85347027,208.22,208.21,0.03]
[1757301261962,37.46,208.22,208.21,0.03]
[1757301263286,40.54347027,208.22,208.21,0.03]
[1757301263509,44.65608289,208.22,208.21,0.03]
[1757301263792,45.34608289,208.22,208.21,0.03]
[1757301265164,37.46,208.22,208.21,0.03]
[1757301265387,42.26261262,208.22,208.21,0.03]
[1757301265572,42.95261262,208.22,208.21,0.03]
[1757301266587,40.54347027,208.22,208.21,0.03]
[1757301267700,45.34608289,208.22,208.21,0.03]
[1757301269086,37.44,208.22,208.21,0.03]
[1757301269289,39.83347027,208.22,208.21,0.03]
[1757301269477,40.52347027,208.22,208.21,0.03]
[1757301271016,45.32608289,208.22,208.21,0.03]
[1757301272690,5.49261262,208.22,208.21,0.03]
[1757301272876,37.44,208.22,208.21,0.03]
[1757301273082,39.83347027,208.22,208.21,0.03]
[1757301273581,44.63608289,208.22,208.21,0.03]
[1757301274177,45.32608289,208.22,208.21,0.03]
[1757301274381,46.67331114,208.22,208.21,0.03]
[1757301277820,41.87069852,208.22,208.21,0.03]
[1757301277986,41.18069852,208.22,208.21,0.03]
[1757301278315,46.64331114,208.22,208.21,0.03]
[1757301279104,41.18069852,208.22,208.21,0.03]
[1757301279604,0.06,208.23,208.21,0.03]
[1757301279819,37.44,208.22,208.21,0.7]
[1757301281601,37.44,208.22,208.21,0.03]
[1757301285908,38.1,208.22,208.21,0.03]
[1757301286295,42.90261262,208.22,208.21,0.03]
[1757301286602,46.64331114,208.22,208.21,0.03]
[1757301288306,41.84069852,208.22,208.21,0.03]
[1757301289113,38.1,208.22,208.21,0.03]
[1757301289307,37.42,208.22,208.21,0.03]
[1757301289714,3.80069852,208.23,208.21,0.03]
[1757301290023,37.42,208.22,208.21,0.03]
[1757301290395,46.62331114,208.22,208.21,0.03]
[1757301291404,38.08,208.22,208.21,0.03]
[1757301291601,46.62331114,208.22,208.21,0.03]
[1757301293305,41.82069852,208.22,208.21,0.03]
[1757301293724,46.62331114,208.22,208.21,0.03]
[1757301296819,4.40069852,208.22,208.21,0.03]
[1757301296994,3.74069852,208.22,208.21,0.03]
[1757301297201,37.42,208.22,208.21,0.7]
[1757301297725,37.42,208.22,208.21,0.03]
[1757301300017,3.80069852,208.23,208.21,0.03]
[1757301300222,37.42,208.22,208.21,0.03]
[1757301300804,9.20331114,208.22,208.21,0.03]
[1757301301006,46.62331114,208.22,208.21,0.03]
[1757301304315,41.82069852,208.22,208.21,0.03]
[1757301304525,3.74069852,208.22,208.21,0.03]
[1757301304723,41.16069852,208.22,208.21,0.03]
[1757301304921,3.80069852,208.23,208.21,0.03]
[1757301305311,37.42,208.22,208.21,0.03]
[1757301305506,41.16069852,208.22,208.21,0.03]
[1757301305815,41.84069852,208.22,208.21,0.03]
[1757301306607,59.17699105,208.22,208.2,0.03]
[1757301306811,4.80307396,208.2,208.18,0.03]
[1757301307038,67.14069852,208.19,208.18,0.03]
[1757301307244,81.41629253,208.19,208.18,0.03]
[1757301307412,13.59559401,208.18,208.05,0.03]
[1757301307613,26.0,208.12,208.05,0.03]
[1757301307814,3.74069852,208.1,208.05,0.03]
[1757301308030,37.4,208.09,208.08,1.92395565]
[1757301308231,26.0,208.12,208.08,1.92395565]
[1757301308232,3.74069852,208.12,208.08,1.92395565]
[1757301308432,37.4,208.11,208.09,0.7]
[1757301308634,3.74069852,208.13,208.09,0.7]
[1757301308635,37.4,208.1,208.09,0.7]
[1757301309341,37.4,208.1,208.07,5.66483927]
[1757301309525,37.4,208.1,208.08,0.7]
[1757301309832,37.4,208.1,208.07,5.66483927]
[1757301310020,37.4,208.1,208.07,0.7]
[1757301310219,37.4,208.1,208.06,0.03]
[1757301310220,3.74069852,208.08,208.06,0.03]
[1757301310421,37.42,208.07,208.06,0.03]
[1757301310621,41.84069852,208.07,208.06,0.03]
[1757301311418,46.64677339,208.07,208.06,0.03]
[1757301312542,38.1,208.07,208.06,0.03]
[1757301312747,37.42,208.07,208.06,0.03]
[1757301313317,3.74069852,208.09,208.06,0.03]
[1757301313559,38.01116703,208.14,208.07,3.74069852]
[1757301313560,37.42,208.08,208.07,3.74069852]
[1757301313719,8.54539722,208.13,208.07,4.44069852]
[1757301313918,37.42,208.12,208.07,4.44069852]
[1757301314541,37.42,208.12,208.08,0.7]
[1757301314844,42.22505365,208.12,208.07,3.74069852]
[1757301315039,37.42,208.11,208.08,0.7]
[1757301315223,37.42,208.11,208.09,3.74069852]
[1757301315423,37.42,208.11,208.08,4.44069852]
[1757301315643,38.1,208.11,208.07,3.74069852]
[1757301315818,38.1,208.11,208.06,3.77069852]
[1757301316018,38.1,208.11,208.06,4.47069852]
[1757301316240,38.1,208.11,208.07,4.44069852]
[1757301316241,37.42,208.11,208.07,4.44069852]
[1757301319439,37.42,208.11,208.07,3.74069852]
[1757301319619,4.42069852,208.13,208.07,3.74069852]
[1757301319833,37.42,208.12,208.07,9.24675771]
[1757301320038,37.42,208.12,208.08,0.7]
[1757301320240,0.68,208.12,208.07,0.7]
[1757301320440,37.42,208.11,208.07,9.24676537]
[1757301321455,38.1,208.11,208.07,3.74069852]
[1757301322256,37.42,208.11,208.07,3.74069852]
[1757301322641,0.68,208.1,208.06,0.03]
[1757301322836,0.68,208.1,208.06,3.77069852]
[1757301323037,0.68,208.09,208.06,3.77069852]
[1757301323359,37.42,208.08,208.06,0.03]
[1757301324060,37.42,208.08,208.06,3.77069852]
[1757301325058,38.1,208.08,208.06,0.03]
[1757301325562,37.42,208.07,208.06,4.47069852]
[1757301325740,37.42,208.07,208.06,0.73]
[1757301325939,37.42,208.07,208.06,3.77069852]
[1757301326140,37.42,208.07,208.06,4.47069852]
[1757301326648,37.42,208.07,208.06,18.90106]
[1757301327146,37.42,208.07,208.06,18.20106]
[1757301327537,0.68,208.13,208.06,23.70736587]
[1757301327759,37.42,208.12,208.08,3.74069852]
[1757301327947,38.1,208.12,208.08,3.74069852]
[1757301329553,38.1,208.12,208.08,8.54647517]
[1757301330045,0.68,208.11,208.07,4.80605851]
[1757301330237,0.68,208.11,208.07,88.64675703]
[1757301330438,0.68,208.11,208.08,3.74069852]
[1757301330861,0.68,208.13,208.08,3.74069852]
[1757301331045,27.14294795,208.15,208.07,84.90605851]
[1757301331046,27.14294795,208.15,208.11,3.74069852]
[1757301331248,37.4,208.14,208.11,4.44069852]
[1757301331451,37.4,208.14,208.11,9.24564813]
[1757301331649,27.14294795,208.15,208.12,3.74069852]
[1757301331857,37.4,208.14,208.12,4.44069852]
[1757301332067,37.4,208.14,208.12,3.74069852]
[1757301333164,37.4,208.14,208.13,3.74069852]
[1757301333466,37.4,208.14,208.13,9.24538789]